lending/lending_fUSD_20260124
["ID","MTS","AMOUNT","RATE_DAILY","PERIOD"]
[403282908,1769286633423,-218.2,0.00017653,2]
[403282909,1769286633433,-4823.75332596,0.00017677,2]
[403282910,1769286633443,-500.0,0.00017699,2]
[403282911,1769286633452,-150.0,0.00017699,2]
[403282912,1769286633461,-200.0,0.00017711,2]
[403282913,1769286633470,-1000.0,0.00017717,2]
[403282914,1769286633482,-500.0,0.00017754,2]
[403282915,1769286633492,-150.0,0.00017754,2]
[403282916,1769286633501,-218.2,0.00017769,2]
[403282917,1769286633510,-500.0,0.00017799,2]
[403282918,1769286633521,-500.0,0.00017808,2]
[403282919,1769286633530,-1000.0,0.00017808,2]
[403282920,1769286633539,-500.0,0.00017809,2]
[403282921,1769286633549,-200.0,0.00017809,2]
[403282922,1769286633559,-200.0,0.00017856,2]
[403282923,1769286633568,-500.0,0.00017863,2]
[403282924,1769286633577,-218.2,0.00017884,2]
[403282925,1769286633587,-164.64972858,0.00017899,2]
[403282926,1769286633596,-164.64972856,0.00017899,2]
[403282927,1769286633605,-164.64972856,0.000179,2]
[403282928,1769286633615,-164.64972856,0.000179,2]
[403282929,1769286633625,-4823.75332596,0.000179,2]
[403282930,1769286633635,-164.64972856,0.000179,2]
[403282931,1769286633644,-3642.0,0.000179,2]
[403282932,1769286633654,-168.0,0.00017902,2]
[403282933,1769286633664,-500.0,0.00017918,2]
[403282934,1769286633682,-164.67448754,0.00017973,2]
[403282935,1769286633693,-14496.5580065,0.00017978,2]
[403282936,1769286633703,-168.0,0.0001799,2]
[403282937,1769286633713,-277.0,0.00017993,2]
[403282938,1769286633722,-151.0,0.00017997,2]
[403282939,1769286633732,-500.0,0.00017998,2]
[403282940,1769286633742,-1071.11189023,0.00017999,5]
[403282941,1769286633752,-1000.0,0.00017999,2]
[403282942,1769286633761,-1000.0,0.00017999,2]
[403282943,1769286633770,-500.0,0.00017999,2]
[403282944,1769286633780,-300.0,0.00017999,2]
[403282945,1769286633789,-300.0,0.00017999,2]
[403282946,1769286633799,-300.0,0.00017999,2]
[403282947,1769286633808,-609.90965872,0.00017999,2]
[403282948,1769286633817,-624.55953129,0.00017999,2]
[403282949,1769286633827,-300.0,0.00017999,2]
[403282950,1769286633836,-412.94237149,0.00017999,2]
[403282951,1769286633845,-13686.32468372,0.00017999,2]
[403282952,1769286633855,-500.0,0.00017999,2]
[403282953,1769286633864,-500.0,0.00017999,2]
[403282954,1769286633874,-500.0,0.00017999,2]
[403282955,1769286633883,-500.0,0.00017999,2]
[403282956,1769286633892,-300.0,0.00017999,2]
[403282957,1769286633902,-500.0,0.00017999,2]
[403282958,1769286633911,-500.0,0.00017999,2]
[403282959,1769286633921,-500.0,0.00017999,2]
[403282960,1769286633929,-500.0,0.00017999,2]
[403282961,1769286633938,-613.9152437,0.00017999,2]
[403282962,1769286633947,-300.0,0.00017999,2]
[403282963,1769286633956,-500.0,0.00017999,2]
[403282964,1769286633966,-1312.43,0.00017999,2]
[403282965,1769286633975,-1312.43,0.00017999,2]
[403282966,1769286633985,-1312.43,0.00017999,2]
[403282967,1769286633994,-1312.43,0.00017999,2]
[403282968,1769286634003,-1312.43,0.00017999,2]
[403282969,1769286634012,-1930.58,0.00017999,2]
[403282970,1769286634021,-150.0,0.00017999,2]
[403282971,1769286634031,-150.0,0.00017999,2]
[403282972,1769286634040,-137874.93922638,0.00018,2]
[403282973,1769286634116,-434.1571506,0.00018,2]
[403282974,1769286634128,-898.90934689,0.00018,2]
[403282977,1769286637591,-151.0,0.00013699,2]
[403282978,1769286637601,-151.0,0.00013699,2]
[403282979,1769286637610,-151.0,0.00013699,2]
[403282980,1769286637620,-1097.56786155,0.00018,2]
[403282981,1769286637632,-999.8506,0.00018,2]
[403282982,1769286637643,-1000.51193,0.00018,2]
[403282983,1769286637654,-433.34,0.00018,2]
[403282984,1769286637674,-1323.45921772,0.00018,2]
[403282985,1769286637685,-431.69598331,0.00018,2]
[403282986,1769286637701,-32846.53666918,0.00018,2]
[403282987,1769286637717,-1164.20361154,0.00018,2]
[403282988,1769286637728,-871.59133588,0.00018,2]
[403282989,1769286637793,-9225.04583948,0.00018,2]
[403282990,1769286637803,-1157.83394336,0.00018,2]
[403282991,1769286637828,-7495.93213596,0.00018,2]
[403283152,1769286639684,-151.0,0.00013699,2]
[403283154,1769286639694,-151.0,0.00013699,2]
[403283156,1769286639703,-151.0,0.00013699,2]
[403283158,1769286639712,-2911.0,0.00018,2]
[403283160,1769286639721,-3012269.23210156,0.00018,2]
[403283162,1769286639734,-1442.95083805,0.00018,2]
[403283164,1769286639745,-1221.1636,0.00018,2]
[403283175,1769286639832,-3410.21835125,0.00018,2]
[403283177,1769286639843,-466.69664091,0.00018,2]
[403283831,1769286646261,-151.0,0.00013699,2]
[403283832,1769286646270,-151.0,0.00015795,2]
[403283834,1769286646279,-515.63749,0.00018,2]
[403283836,1769286646290,-1826.14,0.00018,2]
[403283840,1769286646319,-4137.0,0.00018,2]
[403283842,1769286646330,-1901.20008,0.00018,2]
[403283844,1769286646342,-2780.58887414,0.00018,2]
[403283856,1769286646446,-96.79942897,0.00018,2]
[403283861,1769286646495,-36102.64657222,0.00018,2]
[403283864,1769286646508,-123508.69676429,0.00018,2]
[403283866,1769286646522,-133047.523553,0.00018,2]
[403283868,1769286646538,-110087.93569795,0.00018,2]
[403283871,1769286646552,-111132.90823411,0.00018,2]
[403283873,1769286646568,-42855.403,0.00018,2]
[403283875,1769286646582,-8188.06769923,0.00018,2]
[403283877,1769286646592,-800.37170123,0.00018,2]
[403283879,1769286646601,-10150.35942676,0.00018,2]
[403283881,1769286646610,-50387.95680079,0.00018,2]
[403283886,1769286646653,-70274.65275384,0.00018,2]
[403286303,1769286672060,5533.0,0.000135,5]
[403286347,1769286742279,900.0,0.000176,30]
[403286357,1769286939881,-300.0,0.00014758,2]
[403286358,1769286939906,-1200.0,0.00014758,2]
[403286359,1769286939930,-139.21921177,0.00014758,2]
[403286360,1769286939979,-160.78078823,0.00014758,2]
[403286489,1769287831825,-151.0,0.00013699,2]
[403286490,1769287831834,-206.4391514,0.00013699,2]
[403286491,1769287831844,-216.74260354,0.000149,2]
[403286492,1769287831855,-600.0,0.00014946,2]
[403286493,1769287831864,-600.0,0.00015261,2]
[403286494,1769287831874,-650.24794863,0.00015476,2]
[403286495,1769287831904,-293.48857706,0.00015476,2]
[403286497,1769287831934,-1042.38447431,0.00015476,2]
[403286498,1769287831944,-179.142,0.00015476,2]
[403286500,1769287831953,-556.63875,0.0001563,2]
[403286501,1769287831963,-300.0,0.0001569,2]
[403286503,1769287831973,-172.5,0.00015691,2]
[403286504,1769287831982,-500.0,0.00015691,2]
[403286505,1769287831991,-500.0,0.00015691,2]
[403286506,1769287832001,-500.0,0.00015691,2]
[403286507,1769287832010,-221.22,0.00015691,2]
[403286508,1769287832019,-486.76818218,0.00015691,2]
[403286509,1769287832029,-151.0,0.00015789,2]
[403286510,1769287832038,-150.0,0.00015791,2]
[403286511,1769287832048,-500.0,0.00015791,2]
[403286512,1769287832057,-252.78390782,0.00015791,2]
[403286513,1769287832066,-569.36293706,0.00015791,2]
[403286514,1769287832075,-267.72514093,0.00015791,2]
[403286515,1769287832084,-176.94873547,0.00015791,2]
[403286516,1769287832094,-151.0,0.00015872,2]
[403286517,1769287832103,-151.0,0.00015872,2]
[403286518,1769287832112,-151.0,0.00015885,2]
[403286519,1769287832122,-151.0,0.00015889,2]
[403286520,1769287832131,-500.0,0.00015991,2]
[403286521,1769287832140,-1.22568223,0.00015991,2]
[403286522,1769287832151,-498.77431777,0.00015991,2]
[403286523,1769287832161,-108.79066256,0.00015991,2]
[403286524,1769287832194,-391.20933744,0.00015991,2]
[403286525,1769287832203,-167.55334184,0.00016059,2]
[403286526,1769287832214,-147.32665816,0.00016059,2]
[403286527,1769287832223,-800.63531991,0.00016079,2]
[403286528,1769287832234,-224.81468009,0.00016079,2]
[403286529,1769287832243,-200.0,0.00016328,2]
[403286530,1769287832252,-500.0,0.00016356,2]
[403286531,1769287832261,-500.0,0.00016356,2]
[403286532,1769287832270,-266.86209184,0.0001639,2]
[403286533,1769287832281,-333.13790816,0.0001639,2]
[403286534,1769287832290,-600.0,0.0001639,2]
[403286535,1769287832300,-500.0,0.00016438,2]
[403286536,1769287832309,-500.0,0.00016438,2]
[403286537,1769287832318,-239.12209482,0.00016438,2]
[403286538,1769287832327,-151.0,0.00016485,2]
[403286539,1769287832337,-151.0,0.00016485,2]
[403286540,1769287832346,-151.0,0.00016485,2]
[403286541,1769287832356,-151.0,0.00016485,2]
[403286542,1769287832365,-151.0,0.00016485,2]
[403286543,1769287832374,-151.0,0.00016485,2]
[403286544,1769287832383,-151.0,0.00016485,2]
[403286545,1769287832391,-151.0,0.00016485,2]
[403286546,1769287832400,-151.0,0.00016485,2]
[403286547,1769287832409,-151.0,0.00016485,2]
[403286548,1769287832419,-75.2857505,0.00016485,2]
[403286549,1769287832468,-75.7142495,0.00016485,2]
[403286550,1769287832477,-1000.0,0.000165,2]
[403286551,1769287832486,-255.54899569,0.00016733,2]
[403286552,1769287832497,-1013.08682692,0.00016733,2]
[403286553,1769287832509,-131.56644824,0.00016733,2]
[403286554,1769287832518,-500.0,0.00016921,2]
[403286555,1769287832527,-1400.20227085,0.00016966,2]
[403286556,1769287832536,-250.0,0.00017,2]
[403286557,1769287832545,-4123.58474451,0.00017,2]
[403286558,1769287832554,-348.62,0.00017074,2]
[403286559,1769287832563,-420.0,0.0001716,2]
[403286560,1769287832572,-1400.20227085,0.000172,2]
[403286561,1769287832581,-1000.0,0.0001726,2]
[403286562,1769287832589,-179.89,0.00017378,2]
[403286563,1769287832598,-1400.20227085,0.00017433,2]
[403286564,1769287832608,-1000.0,0.00017534,2]
[403286565,1769287832617,-168.87826209,0.0001764,2]
[403286566,1769287832626,-1400.20227085,0.00017667,2]
[403286567,1769287832634,-150.0,0.00017699,2]
[403286568,1769287832643,-150.99,0.00017728,2]
[403286569,1769287832652,-150.0,0.00017754,2]
[403286570,1769287832662,-1000.0,0.00017808,2]
[403286571,1769287832671,-215.22137946,0.00017809,2]
[403286572,1769287832680,-200.0,0.00017856,2]
[403286573,1769287832689,-1400.20227085,0.000179,2]
[403286574,1769287832698,-7219.32852067,0.000179,2]
[403286575,1769287832707,-273.96167343,0.00017908,2]
[403286576,1769287832716,-282.81613699,0.00017935,2]
[403286577,1769287832724,-150.0,0.00017973,2]
[403286578,1769287832734,-406.09309655,0.0001799,2]
[403286579,1769287832745,-467.27097319,0.0001799,2]
[403286580,1769287832755,-873.36406974,0.0001799,2]
[403286581,1769287832765,-873.36406974,0.0001799,2]
[403286582,1769287832774,-1230.26834653,0.00017997,2]
[403286583,1769287832793,-408.2574532,0.00017997,2]
[403286584,1769287832804,-323.3292545,0.00017997,2]
[403286587,1769287837792,-251.80538329,0.00017997,2]
[403286588,1769287837802,-436.75223375,0.00017997,2]
[403286589,1769287837816,-1478.39503501,0.00017997,2]
[403286590,1769287837845,-351.88118535,0.00017997,2]
[403286591,1769287837858,-390.805764,0.00017997,2]
[403286592,1769287837986,-907.41683005,0.00017997,2]
[403286593,1769287838018,-399.50618374,0.00017997,2]
[403286594,1769287838030,-1179.81263083,0.00017997,2]
[403286770,1769287839956,-506.37642362,0.00017997,2]
[403286773,1769287839969,-354.57139711,0.00017997,2]
[403286775,1769287839980,-1361.29,0.00017997,2]
[403286785,1769287840066,-1291.95038392,0.00017997,2]
[403286787,1769287840075,-3327.89908208,0.00017997,2]
[403286789,1769287840087,-11210.77084716,0.00017997,2]
[403286791,1769287840097,-27858.10365779,0.00017997,2]
[403286798,1769287840148,-84307.55935177,0.00017997,2]
[403286800,1769287840158,-151.0,0.00017997,2]
[403286802,1769287840168,-16056.46466463,0.00017999,2]
[403286804,1769287840177,-1008.959,0.00017999,2]
[403286806,1769287840186,-300.0,0.00017999,2]
[403286808,1769287840196,-300.0,0.00017999,2]
[403286810,1769287840205,-300.0,0.00017999,2]
[403286812,1769287840214,-300.0,0.00017999,2]
[403286814,1769287840223,-300.0,0.00017999,2]
[403286816,1769287840232,-500.0,0.00017999,2]
[403286818,1769287840241,-500.0,0.00017999,2]
[403286820,1769287840250,-500.0,0.00017999,2]
[403286822,1769287840259,-576.20605499,0.00017999,2]
[403286824,1769287840270,-160.475,0.00017999,2]
[403286826,1769287840279,-300.0,0.00017999,2]
[403286828,1769287840289,-2908.0,0.00018,2]
[403286830,1769287840298,-150.0,0.00018,2]
[403286832,1769287840306,-150.0,0.00018,2]
[403286834,1769287840315,-2906411.56803017,0.00018,2]
[403286836,1769287840326,-276.871998,0.00018,2]
[403286849,1769287840438,-1341.1462227,0.00018,2]
[403286857,1769287840497,-1368.08453927,0.00018,2]
[403286865,1769287840563,-854.0836,0.00018,2]
[403286874,1769287840633,-5726.82916256,0.00018,2]
[403287142,1769287843273,-4197.18904291,0.00018,2]
[403287145,1769287843284,-410.39994,0.00018,2]
[403287147,1769287843296,-345.0,0.00018,2]
[403287253,1769287844230,-12111.9525301,0.00018,2]
[403287258,1769287844266,-340.981756,0.00018,2]
[403287261,1769287844278,-549.19859983,0.00018,2]
[403287423,1769287845767,-999.0,0.00018,2]
[403287433,1769287845855,-2210.25629834,0.00018,2]
[403287435,1769287845866,-945.83191163,0.00018,2]
[403287458,1769287846070,-845.0,0.00018,2]
[403289661,1769287925741,500.0,0.000122,2]
[403289662,1769287926803,500.0,0.000122,2]
[403289663,1769287927087,384.28123758,0.000122,2]
[403289687,1769287986958,582.0004,0.000122,2]
[403289689,1769287989717,500.71110259,0.000122,2]
[403289690,1769287990356,500.0,0.000122,2]
[403289711,1769288043719,502.71264906,0.000122,2]
[403289712,1769288044373,500.0,0.000122,2]
[403289714,1769288046126,500.0,0.000122,2]
[403289811,1769288830446,12576.98,0.00011848,2]
[403289812,1769288835122,-253.0,0.00012542,2]
[403289813,1769288835141,-158.87,0.00012542,2]
[403289814,1769288835494,-38.16219024,0.00013796,2]
[403289879,1769289032164,-500.0,0.00014677,2]
[403289880,1769289032173,-200.0,0.00014858,2]
[403289881,1769289032183,-150.0,0.00014867,2]
[403289882,1769289032192,-166.66,0.00015074,2]
[403289883,1769289032201,-1600.0,0.00015194,2]
[403289884,1769289032210,-542.0,0.00015311,2]
[403289885,1769289032221,-5822.04455397,0.00015312,2]
[403289886,1769289032233,-804.0,0.00015312,2]
[403289887,1769289032252,-300.0,0.00015312,2]
[403289888,1769289032265,-11214.11418927,0.00015312,2]
[403289889,1769289032275,-152.0,0.00015345,3]
[403289890,1769289032284,-164.40693021,0.00015367,2]
[403289891,1769289032293,-151.0,0.00015385,2]
[403289892,1769289032302,-635067.711,0.00015388,2]
[403289893,1769289032313,-397.0,0.00015412,2]
[403289894,1769289032323,-300.0,0.00015486,2]
[403289895,1769289032331,-500.0,0.00015487,2]
[403289896,1769289032340,-499.58369012,0.00015487,2]
[403289897,1769289032350,-500.0,0.00015487,2]
[403289898,1769289032359,-500.0,0.00015487,2]
[403289899,1769289032368,-500.0,0.00015487,2]
[403289900,1769289032378,-500.0,0.00015487,2]
[403289901,1769289032387,-500.0,0.00015487,2]
[403289902,1769289032396,-500.0,0.00015487,2]
[403289903,1769289032406,-500.0,0.00015487,2]
[403289904,1769289032415,-500.0,0.00015487,2]
[403289905,1769289032424,-500.0,0.00015487,2]
[403289906,1769289032432,-500.0,0.00015487,2]
[403289907,1769289032441,-500.0,0.00015487,2]
[403289908,1769289032450,-500.0,0.00015487,2]
[403289909,1769289032459,-500.0,0.00015487,2]
[403289910,1769289032468,-500.0,0.00015487,2]
[403289911,1769289032477,-500.0,0.00015487,2]
[403289912,1769289032486,-500.0,0.00015487,2]
[403289913,1769289032495,-500.0,0.00015487,2]
[403289914,1769289032504,-500.0,0.00015487,2]
[403289915,1769289032514,-500.0,0.00015487,2]
[403289916,1769289032523,-500.0,0.00015487,2]
[403289917,1769289032532,-500.0,0.00015487,2]
[403289918,1769289032541,-500.0,0.00015487,2]
[403289919,1769289032550,-500.0,0.00015487,2]
[403289920,1769289032559,-196.13418677,0.00015487,2]
[403289921,1769289032569,-500.0,0.00015487,2]
[403289922,1769289032578,-500.0,0.00015487,2]
[403289923,1769289032587,-500.0,0.00015487,2]
[403289924,1769289032597,-500.0,0.00015487,2]
[403289925,1769289032606,-500.0,0.00015487,2]
[403289926,1769289032615,-500.0,0.00015487,2]
[403289927,1769289032624,-500.0,0.00015487,2]
[403289928,1769289032633,-500.0,0.00015487,2]
[403289929,1769289032642,-500.0,0.00015487,2]
[403289930,1769289032651,-500.0,0.00015487,2]
[403289931,1769289032660,-500.0,0.00015487,2]
[403289932,1769289032669,-500.0,0.00015487,2]
[403289933,1769289032678,-500.0,0.00015487,2]
[403289934,1769289032687,-500.0,0.00015487,2]
[403289935,1769289032697,-500.0,0.00015487,2]
[403289936,1769289032706,-500.0,0.00015487,2]
[403289937,1769289032715,-500.0,0.00015487,2]
[403289938,1769289032725,-500.0,0.00015487,2]
[403289939,1769289032734,-500.0,0.00015487,2]
[403289940,1769289032743,-500.0,0.00015487,2]
[403289941,1769289032752,-500.0,0.00015487,2]
[403289942,1769289032762,-500.0,0.00015487,2]
[403289943,1769289032771,-500.0,0.00015487,2]
[403289944,1769289032780,-500.0,0.00015487,2]
[403289945,1769289032789,-500.0,0.00015487,2]
[403289946,1769289032798,-500.0,0.00015487,2]
[403289947,1769289032807,-500.0,0.00015487,2]
[403289948,1769289032816,-500.0,0.00015487,2]
[403289949,1769289032825,-500.0,0.00015487,2]
[403289950,1769289032834,-500.0,0.00015487,2]
[403289951,1769289032843,-500.0,0.00015487,2]
[403289952,1769289032852,-571.04623825,0.00015487,2]
[403289953,1769289032862,-300.0,0.00015489,2]
[403289954,1769289032871,-574.16,0.00015489,2]
[403289955,1769289032880,-500.0,0.0001549,2]
[403289956,1769289032889,-248.55405595,0.0001549,2]
[403289957,1769289032899,-187.40759865,0.0001549,2]
[403289958,1769289032908,-500.0,0.0001549,2]
[403289959,1769289032917,-16056.46466463,0.00015491,2]
[403289960,1769289032926,-2330.54871604,0.00015492,2]
[403289961,1769289032935,-167.31,0.0001553,2]
[403289962,1769289032944,-4721.89465164,0.00015555,2]
[403289963,1769289032954,-458.02499836,0.0001556,2]
[403289964,1769289032964,-500.0,0.00015582,2]
[403289965,1769289032974,-500.0,0.00015582,2]
[403289966,1769289032983,-500.0,0.00015582,2]
[403289967,1769289032992,-500.0,0.00015582,2]
[403289968,1769289033001,-500.0,0.00015582,2]
[403289969,1769289033011,-500.0,0.00015582,2]
[403289970,1769289033020,-209.40740329,0.00015582,2]
[403289971,1769289033029,-500.0,0.00015582,2]
[403289972,1769289033039,-500.0,0.00015582,2]
[403289973,1769289033048,-500.0,0.00015582,2]
[403289974,1769289033057,-500.0,0.00015582,2]
[403289975,1769289033066,-500.0,0.00015582,2]
[403289976,1769289033075,-533.11293322,0.00015582,2]
[403289977,1769289033084,-151.0,0.00015582,2]
[403289978,1769289033093,-151.0,0.00015582,2]
[403289979,1769289033102,-151.0,0.00015582,2]
[403289980,1769289033111,-151.0,0.00015582,2]
[403289981,1769289033120,-151.0,0.00015582,2]
[403289982,1769289033130,-151.0,0.00015582,2]
[403289983,1769289033139,-151.0,0.00015582,2]
[403289984,1769289033149,-151.0,0.00015582,2]
[403289985,1769289033158,-151.0,0.00015582,2]
[403289986,1769289033167,-151.0,0.00015582,2]
[403289987,1769289033176,-151.0,0.00015582,2]
[403289988,1769289033186,-151.0,0.00015582,2]
[403289989,1769289033196,-151.0,0.00015582,2]
[403289990,1769289033206,-151.0,0.00015582,2]
[403289991,1769289033215,-151.0,0.00015582,2]
[403289992,1769289033229,-151.0,0.00015582,2]
[403289993,1769289033239,-500.0,0.00015582,2]
[403289994,1769289033256,-151.0,0.00015582,2]
[403289995,1769289033269,-500.0,0.00015582,2]
[403289996,1769289033279,-151.0,0.00015582,2]
[403289997,1769289033289,-500.0,0.00015582,2]
[403289998,1769289033300,-151.0,0.00015582,2]
[403289999,1769289033309,-500.0,0.00015582,2]
[403290000,1769289033319,-151.0,0.00015582,2]
[403290001,1769289033329,-500.0,0.00015582,2]
[403290002,1769289033338,-151.0,0.00015582,2]
[403290003,1769289033348,-500.0,0.00015582,2]
[403290004,1769289033358,-242.32982283,0.00015582,2]
[403290005,1769289033367,-500.0,0.00015582,2]
[403290006,1769289033376,-500.0,0.00015582,2]
[403290007,1769289033386,-500.0,0.00015582,2]
[403290008,1769289033396,-499.72603905,0.00015582,2]
[403290009,1769289033405,-2422.4,0.00015588,2]
[403290010,1769289033415,-179.142,0.00015588,2]
[403290011,1769289033424,-502.40156004,0.00015591,2]
[403290012,1769289033433,-500.0,0.00015591,2]
[403290013,1769289033442,-500.0,0.00015591,2]
[403290014,1769289033451,-500.0,0.00015591,2]
[403290015,1769289033461,-549.27828535,0.00015591,2]
[403290016,1769289033471,-500.0,0.00015591,2]
[403290017,1769289033480,-500.0,0.00015591,2]
[403290018,1769289033490,-500.0,0.00015591,2]
[403290019,1769289033500,-455.72018722,0.00015591,2]
[403290020,1769289033510,-500.0,0.00015591,2]
[403290021,1769289033519,-500.0,0.00015591,2]
[403290022,1769289033528,-231.19421172,0.00015591,2]
[403290023,1769289033538,-500.0,0.00015591,2]
[403290024,1769289033547,-504.73958654,0.00015591,2]
[403290025,1769289033556,-500.0,0.00015591,2]
[403290026,1769289033565,-500.0,0.00015591,2]
[403290027,1769289033575,-500.0,0.00015591,2]
[403290028,1769289033584,-500.0,0.00015591,2]
[403290029,1769289033594,-150.0,0.00015591,2]
[403290030,1769289033603,-500.0,0.00015591,2]
[403290031,1769289033617,-500.0,0.00015591,2]
[403290032,1769289033627,-500.0,0.00015591,2]
[403290033,1769289033637,-500.0,0.00015591,2]
[403290034,1769289033646,-500.0,0.00015591,2]
[403290035,1769289033656,-500.0,0.00015591,2]
[403290036,1769289033666,-500.0,0.00015591,2]
[403290038,1769289033675,-500.0,0.00015591,2]
[403290039,1769289033685,-500.0,0.00015591,2]
[403290040,1769289033695,-500.0,0.00015591,2]
[403290041,1769289033705,-18140.15874323,0.000156,2]
[403290043,1769289033714,-151.0,0.0001567,2]
[403290044,1769289033724,-152.57,0.00015679,2]
[403290045,1769289033733,-166.66,0.00015696,2]
[403290046,1769289033743,-316.0,0.00015718,2]
[403290047,1769289033753,-574.16,0.00015763,2]
[403290049,1769289033762,-500.0,0.00015764,2]
[403290050,1769289033772,-500.0,0.00015791,2]
[403290051,1769289033782,-500.0,0.00015791,2]
[403290053,1769289033791,-500.0,0.00015791,2]
[403290054,1769289033801,-500.0,0.00015791,2]
[403290055,1769289033815,-500.0,0.00015791,2]
[403290057,1769289033825,-500.0,0.00015791,2]
[403290058,1769289033835,-500.0,0.00015791,2]
[403290059,1769289033845,-500.0,0.00015791,2]
[403290061,1769289033855,-500.0,0.00015791,2]
[403290062,1769289033865,-500.0,0.00015791,2]
[403290064,1769289033875,-505.56624435,0.00015791,2]
[403290065,1769289033884,-500.0,0.00015791,2]
[403290066,1769289033895,-617.21243445,0.00015791,2]
[403290068,1769289033905,-500.0,0.00015791,2]
[403290069,1769289033914,-500.0,0.00015791,2]
[403290070,1769289033924,-500.0,0.00015791,2]
[403290072,1769289033934,-504.4150641,0.00015791,2]
[403290073,1769289033943,-500.0,0.00015791,2]
[403290074,1769289033954,-500.0,0.00015791,2]
[403290075,1769289033964,-500.0,0.00015791,2]
[403290077,1769289033973,-500.0,0.00015791,2]
[403290078,1769289033983,-500.0,0.00015791,2]
[403290079,1769289033992,-500.0,0.00015791,2]
[403290081,1769289034002,-500.0,0.00015791,2]
[403290082,1769289034016,-614.97964183,0.00015791,2]
[403290083,1769289034026,-500.0,0.00015791,2]
[403290085,1769289034036,-4721.89465159,0.00015816,2]
[403290086,1769289034045,-18140.15874323,0.00015887,2]
[403290087,1769289034055,-1000.0,0.00015918,2]
[403290088,1769289034065,-4881.0,0.00016,2]
[403290090,1769289034075,-574.16,0.00016037,2]
[403290091,1769289034085,-4721.89465159,0.00016076,2]
[403290092,1769289034095,-503.61948635,0.0001613,2]
[403290094,1769289034105,-18140.15874323,0.00016175,2]
[403290095,1769289034115,-574.16,0.00016311,2]
[403290096,1769289034125,-166.66,0.00016318,2]
[403290098,1769289034134,-4721.89465159,0.00016337,2]
[403290099,1769289034144,-200.0,0.00016356,2]
[403290100,1769289034154,-500.0,0.00016356,2]
[403290102,1769289034164,-500.0,0.00016438,2]
[403290103,1769289034174,-500.0,0.00016438,2]
[403290104,1769289034184,-500.0,0.00016438,2]
[403290106,1769289034194,-500.0,0.00016438,2]
[403290107,1769289034210,-500.0,0.00016438,2]
[403290108,1769289034223,-500.0,0.00016438,2]
[403290109,1769289034239,-500.0,0.00016438,2]
[403290111,1769289034252,-500.0,0.00016438,2]
[403290112,1769289034268,-500.0,0.00016438,2]
[403290113,1769289034279,-500.0,0.00016438,2]
[403290115,1769289034290,-500.0,0.00016438,2]
[403290116,1769289034300,-500.0,0.00016438,2]
[403290117,1769289034311,-557.68402476,0.00016438,2]
[403290119,1769289034321,-500.0,0.00016438,2]
[403290120,1769289034331,-500.0,0.00016438,2]
[403290121,1769289034341,-500.0,0.00016438,2]
[403290123,1769289034352,-500.0,0.00016438,2]
[403290124,1769289034362,-500.0,0.00016438,2]
[403290125,1769289034373,-500.0,0.00016438,2]
[403290126,1769289034383,-500.0,0.00016438,2]
[403290128,1769289034393,-500.0,0.00016438,2]
[403290129,1769289034403,-165.25,0.0001644,2]